[Event "EYTCC U18 Open 2019"]
[Site "Pardubice"]
[Date "2019.07.15"]
[Round "5.4"]
[White "Chylewski, Patryk"]
[Black "Sahidi, Samir"]
[Result "0-1"]
[ECO "A52"]
[WhiteElo "2376"]
[BlackElo "2369"]
[Annotator "ChessBase"]
[PlyCount "266"]
[EventDate "2019.07.11"]
[EventType "swiss"]
[EventCountry "CZE"]
[SourceTitle "playchess.com"]
[Source "ChessBase"]
[SourceQuality "1"]
[WhiteTeam "Poland"]
[BlackTeam "Slovakia"]
[WhiteTeamCountry "POL"]
[BlackTeamCountry "SVK"]
[TimeControl "40/5400+30:1800+30"]

1. d4 {[%emt 0:00:00]} Nf6 {[%emt 0:00:00]} 2. c4 {[%emt 0:00:00]} e5 {[%emt 0:00:11]} 3. dxe5 {[%emt 0:00:00]} Ng4 {[%emt 0:00:05]} 4. Nc3 {[%emt 0:05:44]} Bc5 {[%emt 0:01:46]} 5. e3 {[%emt 0:00:20]} Nxe5 {[%emt 0:00:12]} 6. Nh3 {[%emt 0:03:58]} O-O {[%emt 0:07:37]} 7. Nf4 {[%emt 0:00:35]} d6 {[%emt 0:01:18]} 8. Be2 {[%emt 0:00:21]} Nbc6 {[%emt 0:01:08]} 9. O-O {[%emt 0:00:45]} Bf5 {[%emt 0:04:34]} 10. b3 {[%emt 0:03:49]} Qh4 {[%emt 0:03:19]} 11. Bb2 {[%emt 0:08:42]} Ng4 {[%emt 0:02:28]} 12. Bxg4 {[%emt 0:00:31]} Qxg4 {[%emt 0:02:47]} 13. Qxg4 {[%emt 0:07:09]} Bxg4 {[%emt 0:00:07]} 14. Nfd5 {[%emt 0:00:44]} Bb6 {[%emt 0:01:34]} 15. Rac1 {[%emt 0:04:56]} Ba5 {[%emt 0:03:07]} 16. h3 {[%emt 0:06:06]} Bd7 {[%emt 0:03:05]} 17. Rfd1 {[%emt 0:06:01]} Bxc3 {[%emt 0:06:41]} 18. Bxc3 {[%emt 0:01:58]} Rac8 {[%emt 0:00:39]} 19. Rd2 {[%emt 0:00:18]} Be6 {[%emt 0:01:27]} 20. Nf4 {[%emt 0:00:17]} Rfe8 {[%emt 0:00:41]} 21. Nh5 {[%emt 0:09:48]} f6 {[%emt 0:00:35]} 22. e4 {[%emt 0:07:47]} Bf7 {[%emt 0:04:03]} 23. Ng3 {[%emt 0:02:09]} h5 {[%emt 0:03:10]} 24. f3 {[%emt 0:00:38]} Ne5 {[%emt 0:01:06]} 25. Nf5 {[%emt 0:04:41]} Nd7 {[%emt 0:02:40]} 26. Bb4 {[%emt 0:02:15]} Be6 {[%emt 0:01:16]} 27. Ng3 {[%emt 0:00:26]} g6 {[%emt 0:01:01]} 28. Ne2 {[%emt 0:02:45]} b6 {[%emt 0:01:56]} 29. Bc3 {[%emt 0:01:51]} Kf7 {[%emt 0:04:37]} 30. Nd4 {[%emt 0:00:34]} Rg8 {[%emt 0:04:20]} 31. Kf2 {[%emt 0:03:40]} g5 {[%emt 0:01:04]} 32. Rh1 {[%emt 0:01:51]} Ne5 {[%emt 0:00:55]} 33. Rdd1 {[%emt 0:05:12]} Bd7 {[%emt 0:05:00]} 34. Nc2 {[%emt 0:01:29]} Ng6 {[%emt 0:02:06]} 35. Ne3 {[%emt 0:00:33]} Be6 {[%emt 0:00:56]} 36. Rd2 {[%emt 0:03:51]} a6 {[%emt 0:08:11]} 37. Bb2 {[%emt 0:01:26]} b5 {[%emt 0:02:25]} 38. Rc1 {[%emt 0:01:24]} Nf4 {[%emt 0:01:06]} 39. Nd5 {[%emt 0:02:34]} bxc4 {[%emt 0:03:36]} 40. bxc4 {[%emt 0:02:05]} Bxd5 {[%emt 0:05:40]} 41. cxd5 {[%emt 0:30:20]} Ke7 {[%emt 0:30:53]} 42. Rc6 {[%emt 0:00:00]} Kd7 {[%emt 0:00:00]} 43. Rxa6 {[%emt 0:00:00]} g4 {[%emt 0:00:00]} 44. hxg4 {[%emt 0:00:00]} hxg4 {[%emt 0:00:00]} 45. Ke3 {[%emt 0:00:00]} gxf3 {[%emt 0:00:00]} 46. Kxf3 {[%emt 0:00:00]} Ng6 {[%emt 0:00:00]} 47. g3 {[%emt 0:00:00]} Rgf8 {[%emt 0:00:00]} 48. Rh2 {[%emt 0:00:00]} Rf7 {[%emt 0:00:00]} 49. Ke3 {[%emt 0:00:00]} f5 {[%emt 0:00:00]} 50. e5 {[%emt 0:03:27]} Nxe5 {[%emt 0:00:00]} 51. Bxe5 {[%emt 0:00:04]} Re8 {[%emt 0:00:00]} 52. Kf3 {[%emt 0:01:52]} Rxe5 {[%emt 0:00:00]} 53. Rd2 {[%emt 0:00:22]} Rfe7 {[%emt 0:00:00]} 54. Ra7 {[%emt 0:00:24]} Re3+ {[%emt 0:00:00]} 55. Kf4 {[%emt 0:00:41]} R7e4+ {[%emt 0:00:00]} 56. Kxf5 {[%emt 0:00:09]} Rc4 {[%emt 0:00:00]} 57. Ra5 {[%emt 0:01:25]} Rf3+ {[%emt 0:00:00]} 58. Kg5 {[%emt 0:00:03]} Rxg3+ {[%emt 0:00:00]} 59. Kf5 {[%emt 0:00:47]} Rf3+ {[%emt 0:00:00]} 60. Kg5 {[%emt 0:00:07]} Rc1 {[%emt 0:00:00]} 61. Kg4 {[%emt 0:00:13]} Rf7 {[%emt 0:00:00]} 62. Kh3 {[%emt 0:01:10]} Rh1+ {[%emt 0:00:00]} 63. Kg2 {[%emt 0:00:07]} Rh5 {[%emt 0:00:00]} 64. Rf2 {[%emt 0:00:20]} Rfh7 {[%emt 0:00:00]} 65. Kf1 {[%emt 0:00:18]} Re5 {[%emt 0:00:00]} 66. Kg2 {[%emt 0:01:17]} Ke7 {[%emt 0:00:39]} 67. Ra7 {[%emt 0:00:34]} Rg5+ {[%emt 0:00:33]} 68. Kf1 {[%emt 0:00:27]} Rh1+ {[%emt 0:00:12]} 69. Ke2 {[%emt 0:00:02]} Re5+ {[%emt 0:01:34]} 70. Kf3 {[%emt 0:00:03]} Rh3+ {[%emt 0:03:16]} 71. Kg4 {[%emt 0:00:38]} Rc3 {[%emt 0:00:06]} 72. Rh2 {[%emt 0:00:43]} Kf6 {[%emt 0:02:20]} 73. Rf2+ {[%emt 0:01:11]} Kg6 {[%emt 0:00:13]} 74. Ra8 {[%emt 0:00:29]} Rc4+ {[%emt 0:03:08]} 75. Kh3 {[%emt 0:00:31]} Rxd5 {[%emt 0:00:41]} 76. Rg8+ {[%emt 0:00:05]} Kh7 {[%emt 0:00:34]} 77. Rg3 {[%emt 0:00:33]} Rcc5 {[%emt 0:04:34]} 78. Rf7+ {[%emt 0:00:43]} Kh6 {[%emt 0:00:07]} 79. Rf6+ {[%emt 0:00:34]} Kh5 {[%emt 0:00:14]} 80. Rf7 {[%emt 0:00:34]} Rg5 {[%emt 0:00:25]} 81. Re3 {[%emt 0:00:30]} Rg6 {[%emt 0:04:31]} 82. a4 {[%emt 0:00:32]} Kh6 {[%emt 0:02:40]} 83. Kh2 {[%emt 0:00:28]} Rg4 {[%emt 0:00:52]} 84. a5 {[%emt 0:00:27]} Kg6 {[%emt 0:00:30]} 85. Rd7 {[%emt 0:00:28]} Ra4 {[%emt 0:00:55]} 86. Ree7 {[%emt 0:00:30]} Rc2+ {[%emt 0:01:27]} 87. Kg3 {[%emt 0:00:06]} Rc3+ {[%emt 0:00:13]} 88. Kf2 {[%emt 0:00:05]} Rc2+ {[%emt 0:01:37]} 89. Ke3 {[%emt 0:00:44]} Rc3+ {[%emt 0:00:49]} 90. Kd2 {[%emt 0:00:15]} Rh3 {[%emt 0:00:13]} 91. Kc2 {[%emt 0:00:52]} Ra2+ {[%emt 0:02:16]} 92. Kb1 {[%emt 0:00:03]} Rxa5 {[%emt 0:00:24]} 93. Rxc7 {[%emt 0:00:07]} Kf5 {[%emt 0:00:53]} 94. Rc2 {[%emt 0:00:46]} Rb3+ {[%emt 0:00:32]} 95. Kc1 {[%emt 0:00:35]} Ra1+ {[%emt 0:00:18]} 96. Kd2 {[%emt 0:00:01]} Rh1 {[%emt 0:00:27]} 97. Re2 {[%emt 0:00:26]} d5 {[%emt 0:00:38]} 98. Rc3 {[%emt 0:00:31]} Rb2+ {[%emt 0:00:15]} 99. Rc2 {[%emt 0:00:08]} Rb4 {[%emt 0:00:28]} 100. Rc3 {[%emt 0:00:32]} Ra1 {[%emt 0:00:51]} 101. Rf3+ {[%emt 0:00:52]} Kg4 {[%emt 0:00:05]} 102. Rff2 {[%emt 0:01:49]} Ra2+ {[%emt 0:00:57]} 103. Kc3 {[%emt 0:00:37]} Rc4+ {[%emt 0:00:06]} 104. Kd3 {[%emt 0:00:21]} Ra3+ {[%emt 0:00:11]} 105. Kd2 {[%emt 0:00:03]} Rd4+ {[%emt 0:00:24]} 106. Kc2 {[%emt 0:00:04]} Re4 {[%emt 0:00:10]} 107. Rd2 {[%emt 0:01:22]} d4 {[%emt 0:00:24]} 108. Kb2 {[%emt 0:00:37]} Rh3 {[%emt 0:01:52]} 109. Kc2 {[%emt 0:00:10]} Rc3+ {[%emt 0:00:04]} 110. Kb2 {[%emt 0:00:03]} Rc6 {[%emt 0:00:20]} 111. Rd3 {[%emt 0:01:06]} Rc8 {[%emt 0:01:09]} 112. Rfd2 {[%emt 0:00:25]} Rd8 {[%emt 0:00:09]} 113. Rf2 {[%emt 0:00:27]} Re7 {[%emt 0:00:27]} 114. Kc2 {[%emt 0:00:44]} Rc7+ {[%emt 0:00:12]} 115. Kd1 {[%emt 0:00:31]} Ra7 {[%emt 0:00:29]} 116. Rfd2 {[%emt 0:00:39]} Ra4 {[%emt 0:00:17]} 117. Ke2 {[%emt 0:00:34]} Kf5 {[%emt 0:00:50]} 118. Rh3 {[%emt 0:00:25]} Ke4 {[%emt 0:00:24]} 119. Rh4+ {[%emt 0:00:12]} Kd5 {[%emt 0:00:05]} 120. Rh5+ {[%emt 0:00:07]} Kc4 {[%emt 0:00:11]} 121. Rc2+ {[%emt 0:00:15]} Kb4 {[%emt 0:00:17]} 122. Kd2 {[%emt 0:00:35]} Rf8 {[%emt 0:01:15]} 123. Kd3 {[%emt 0:00:31]} Rf3+ {[%emt 0:00:23]} 124. Ke4 {[%emt 0:01:08]} Kb3 {[%emt 0:00:28]} 125. Rc1 {[%emt 0:00:47]} Re3+ {[%emt 0:00:08]} 126. Kf4 {[%emt 0:00:02]} Rc3 {[%emt 0:00:13]} 127. Rd1 {[%emt 0:00:52]} Kc2 {[%emt 0:00:26]} 128. Rhh1 {[%emt 0:00:27]} d3+ {[%emt 0:00:16]} 129. Ke3 {[%emt 0:00:19]} d2+ {[%emt 0:00:05]} 130. Ke2 {[%emt 0:00:03]} Re4+ {[%emt 0:00:01]} 131. Kf2 {[%emt 0:00:05]} Rd3 {[%emt 0:00:42]} 132. Rhg1 {[%emt 0:00:30]} Re7 {[%emt 0:00:22]} 133. Rh1 {[%emt 0:00:21]} Rd8 {[%emt 0:00:21]} 0-1

[Event "EYTCC U18 Open 2019"]
[Site "Pardubice"]
[Date "2019.07.15"]
[Round "5.5"]
[White "Subelj, Jan"]
[Black "Parkhov, Yair"]
[Result "0-1"]
[ECO "B51"]
[WhiteElo "2425"]
[BlackElo "2354"]
[Annotator "ChessBase"]
[PlyCount "111"]
[EventDate "2019.07.11"]
[EventType "swiss"]
[EventCountry "CZE"]
[SourceTitle "playchess.com"]
[Source "ChessBase"]
[SourceQuality "1"]
[WhiteTeam "Slovenia"]
[BlackTeam "Israel"]
[WhiteTeamCountry "SLO"]
[BlackTeamCountry "ISR"]
[TimeControl "40/5400+30:1800+30"]

1. e4 {[%emt 0:00:00]} c5 {[%emt 0:00:00]} 2. Nf3 {[%emt 0:00:00]} d6 {[%emt 0:00:00]} 3. Bb5+ {[%emt 0:00:06]} Nd7 {[%emt 0:00:01]} 4. c3 {[%emt 0:00:35]} Ngf6 {[%emt 0:00:25]} 5. Qe2 {[%emt 0:00:41]} a6 {[%emt 0:02:36]} 6. Ba4 {[%emt 0:00:05]} b5 {[%emt 0:01:08]} 7. Bc2 {[%emt 0:00:06]} e6 {[%emt 0:01:26]} 8. d4 {[%emt 0:02:18]} Be7 {[%emt 0:01:01]} 9. O-O {[%emt 0:00:25]} Bb7 {[%emt 0:00:21]} 10. a4 {[%emt 0:08:32]} O-O {[%emt 0:01:45]} 11. Re1 {[%emt 0:01:11]} Qc7 {[%emt 0:04:26]} 12. axb5 {[%emt 0:05:45]} axb5 {[%emt 0:00:06]} 13. Rxa8 {[%emt 0:00:42]} Rxa8 {[%emt 0:00:37]} 14. e5 {[%emt 0:00:38]} dxe5 {[%emt 0:09:31]} 15. dxe5 {[%emt 0:00:12]} Nd5 {[%emt 0:00:10]} 16. Na3 {[%emt 0:12:53]} b4 {[%emt 0:09:25]} 17. Nb5 {[%emt 0:00:40]} Qb8 {[%emt 0:20:20]} 18. c4 {[%emt 0:06:19]} N5b6 {[%emt 0:00:16]} 19. Ng5 {[%emt 0:20:46]} Bxg5 {[%emt 0:21:38]} 20. Bxg5 {[%emt 0:00:08]} Qxe5 {[%emt 0:01:58]} 21. Qxe5 {[%emt 0:00:06]} Nxe5 {[%emt 0:00:10]} 22. b3 {[%emt 0:00:01]} Ned7 {[%emt 0:05:58]} 23. Nd6 {[%emt 0:04:27]} Bc6 {[%emt 0:00:29]} 24. Be3 {[%emt 0:00:40]} h6 {[%emt 0:02:17]} 25. f4 {[%emt 0:02:45]} f5 {[%emt 0:02:30]} 26. Bf2 {[%emt 0:00:30]} Ra2 {[%emt 0:00:30]} 27. Bd3 {[%emt 0:01:10]} Rd2 {[%emt 0:00:58]} 28. Re3 {[%emt 0:00:05]} Nf8 {[%emt 0:05:36]} 29. h3 {[%emt 0:04:13]} g6 {[%emt 0:00:41]} 30. g4 {[%emt 0:00:23]} e5 {[%emt 0:03:43]} 31. gxf5 {[%emt 0:04:46]} exf4 {[%emt 0:00:06]} 32. Re7 {[%emt 0:00:19]} Rxd3 {[%emt 0:00:18]} 33. Bxc5 {[%emt 0:00:12]} Nbd7 {[%emt 0:00:53]} 34. f6 {[%emt 0:00:40]} Nxf6 {[%emt 0:00:26]} 35. Nf7 {[%emt 0:00:04]} Rd7 {[%emt 0:02:28]} 36. Nxh6+ {[%emt 0:00:21]} Kh8 {[%emt 0:00:02]} 37. Nf7+ {[%emt 0:01:32]} Kg7 {[%emt 0:00:21]} 38. Ne5+ {[%emt 0:00:03]} Rxe7 {[%emt 0:00:07]} 39. Bxe7 {[%emt 0:00:04]} Be4 {[%emt 0:00:35]} 40. Bxb4 {[%emt 0:00:04]} N8d7 {[%emt 0:00:34]} 41. Bc3 {[%emt 0:30:44]} Nxe5 {[%emt 0:32:10]} 42. Bxe5 {[%emt 0:00:06]} f3 {[%emt 0:00:08]} 43. b4 {[%emt 0:00:03]} Kf7 {[%emt 0:02:03]} 44. Kf2 {[%emt 0:00:17]} Ke6 {[%emt 0:00:24]} 45. Bh2 {[%emt 0:00:10]} Nd7 {[%emt 0:00:00]} 46. Ke3 {[%emt 0:00:00]} Ne5 {[%emt 0:00:00]} 47. Bg3 {[%emt 0:00:00]} Kf5 {[%emt 0:00:00]} 48. Kd4 {[%emt 0:00:00]} Nd3 {[%emt 0:00:00]} 49. b5 {[%emt 0:00:00]} f2 {[%emt 0:00:00]} 50. Bxf2 {[%emt 0:00:00]} Nxf2 {[%emt 0:00:00]} 51. c5 {[%emt 0:00:00]} Nxh3 {[%emt 0:00:00]} 52. c6 {[%emt 0:00:00]} Nf4 {[%emt 0:00:00]} 53. Kc5 {[%emt 0:00:00]} Nd5 {[%emt 0:00:00]} 54. b6 {[%emt 0:00:00]} Nxb6 {[%emt 0:00:00]} 55. Kxb6 {[%emt 0:00:00]} Bxc6 {[%emt 0:00:00]} 56. Kxc6 {[%emt 0:00:00]} 0-1

[Event "EYTCC U18 Open 2019"]
[Site "Pardubice"]
[Date "2019.07.15"]
[Round "5.6"]
[White "Zlatin, Alexander"]
[Black "Stevanic, David"]
[Result "0-1"]
[ECO "C88"]
[WhiteElo "2270"]
[BlackElo "2306"]
[Annotator "NA"]
[PlyCount "138"]
[EventDate "2019.07.11"]
[EventType "swiss"]
[EventCountry "CZE"]
[SourceTitle "playchess.com"]
[Source "ChessBase"]
[SourceQuality "1"]
[WhiteTeam "Israel"]
[BlackTeam "Slovenia"]
[WhiteTeamCountry "ISR"]
[BlackTeamCountry "SLO"]
[TimeControl "40/5400+30:1800+30"]

1. e4 {[%emt 0:00:00]} e5 {[%emt 0:00:00]} 2. Nf3 {[%emt 0:00:00]} Nc6 {[%emt 0:00:00]} 3. Bb5 {[%emt 0:00:00]} a6 {[%emt 0:00:00]} 4. Ba4 {[%emt 0:00:00]} Nf6 {[%emt 0:00:00]} 5. O-O {[%emt 0:00:00]} Be7 {[%emt 0:01:52]} 6. Re1 {[%emt 0:00:11]} b5 {[%emt 0:00:21]} 7. Bb3 {[%emt 0:00:05]} O-O {[%emt 0:00:05]} 8. a4 {[%emt 0:00:04]} Bb7 {[%emt 0:08:41]} 9. d3 {[%emt 0:05:45]} d6 {[%emt 0:01:59]} 10. Nc3 {[%emt 0:08:52]} b4 {[%emt 0:14:53]} 11. Nd5 {[%emt 0:00:29]} Nxd5 {[%emt 0:01:46]} 12. Bxd5 {[%emt 0:00:38]} Na5 {[%emt 0:03:19]} 13. Bxb7 {[%emt 0:03:41]} Nxb7 {[%emt 0:01:09]} 14. c3 {[%emt 0:01:46]} c5 {[%emt 0:06:18]} 15. Qb3 {[%emt 0:01:19]} Na5 {[%emt 0:03:27]} 16. Qd5 {[%emt 0:02:13]} bxc3 {[%emt 0:06:07]} 17. bxc3 {[%emt 0:00:22]} Rb8 {[%emt 0:00:37]} 18. Be3 {[%emt 0:01:52]} Rb2 {[%emt 0:04:08]} 19. Rad1 {[%emt 0:10:00]} Qa8 {[%emt 0:07:01]} 20. d4 {[%emt 0:07:09]} Qxd5 {[%emt 0:01:25]} 21. exd5 {[%emt 0:00:02]} exd4 {[%emt 0:04:23]} 22. cxd4 {[%emt 0:03:31]} c4 {[%emt 0:00:29]} 23. Bf4 {[%emt 0:08:55]} Rb7 {[%emt 0:00:24]} 24. Rxe7 {[%emt 0:02:08]} Rxe7 {[%emt 0:00:07]} 25. Bxd6 {[%emt 0:00:03]} Rd7 {[%emt 0:00:28]} 26. Bxf8 {[%emt 0:00:06]} Kxf8 {[%emt 0:00:03]} 27. Ne1 {[%emt 0:00:28]} Rb7 {[%emt 0:08:19]} 28. Nc2 {[%emt 0:16:21]} Rb2 {[%emt 0:07:15]} 29. Ne3 {[%emt 0:00:04]} c3 {[%emt 0:01:50]} 30. Re1 {[%emt 0:03:44]} Nb3 {[%emt 0:10:22]} 31. Nc4 {[%emt 0:01:18]} Nd2 {[%emt 0:00:36]} 32. Ne5 {[%emt 0:03:30]} Rb1 {[%emt 0:01:42]} 33. Rxb1 {[%emt 0:02:58]} Nxb1 {[%emt 0:00:04]} 34. Nd3 {[%emt 0:01:05]} Nd2 {[%emt 0:05:50]} 35. Nc1 {[%emt 0:00:51]} Ke7 {[%emt 0:00:43]} 36. f3 {[%emt 0:00:20]} Kd6 {[%emt 0:00:21]} 37. Kf2 {[%emt 0:00:43]} Nc4 {[%emt 0:01:03]} 38. Ke2 {[%emt 0:06:56]} Nb2 {[%emt 0:00:30]} 39. Na2 {[%emt 0:00:36]} Kxd5 {[%emt 0:01:03]} 40. Nxc3+ {[%emt 0:03:08]} Kxd4 {[%emt 0:00:06]} 41. Kd2 {[%emt 0:32:42]} Nc4+ {[%emt 0:07:33]} 42. Kc2 {[%emt 0:00:00]} Ne3+ {[%emt 0:00:03]} 43. Kb3 {[%emt 0:00:00]} Nxg2 {[%emt 0:00:07]} 44. a5 {[%emt 0:00:00]} Ne1 {[%emt 0:07:54]} 45. Nb5+ {[%emt 0:00:00]} Kc5 {[%emt 0:01:56]} 46. Nc7 {[%emt 0:00:00]} Nxf3 {[%emt 0:01:15]} 47. Ka4 {[%emt 0:00:00]} Nxh2 {[%emt 0:02:09]} 48. Nxa6+ {[%emt 0:00:00]} Kc6 {[%emt 0:00:02]} 49. Nb4+ {[%emt 0:00:00]} Kb7 {[%emt 0:00:07]} 50. Kb5 {[%emt 0:00:00]} Ng4 {[%emt 0:01:00]} 51. a6+ {[%emt 0:00:00]} Ka8 {[%emt 0:03:36]} 52. Kb6 {[%emt 0:00:00]} Nf6 {[%emt 0:01:07]} 53. Kc5 {[%emt 0:00:00]} h5 {[%emt 0:00:56]} 54. Kd4 {[%emt 0:00:00]} h4 {[%emt 0:00:50]} 55. Ke3 {[%emt 0:00:00]} h3 {[%emt 0:02:45]} 56. Kf3 {[%emt 0:00:00]} Ng4 {[%emt 0:00:22]} 57. Nc6 {[%emt 0:00:00]} h2 {[%emt 0:00:19]} 58. Kg2 {[%emt 0:00:00]} f5 {[%emt 0:00:43]} 59. Nd4 {[%emt 0:00:00]} f4 {[%emt 0:00:31]} 60. Nf3 {[%emt 0:00:00]} Ka7 {[%emt 0:00:25]} 61. Nd4 {[%emt 0:00:00]} Kxa6 {[%emt 0:00:14]} 62. Nf5 {[%emt 0:00:00]} f3+ {[%emt 0:00:46]} 63. Kh1 {[%emt 0:00:00]} f2 {[%emt 0:00:33]} 64. Ng3 {[%emt 0:00:00]} Ne3 {[%emt 0:00:17]} 65. Kxh2 {[%emt 0:00:00]} f1=Q {[%emt 0:00:09]} 66. Nxf1 {[%emt 0:00:00]} Nxf1+ {[%emt 0:00:06]} 67. Kh3 {[%emt 0:00:00]} Ne3 {[%emt 0:00:09]} 68. Kh4 {[%emt 0:00:00]} Nf5+ {[%emt 0:00:09]} 69. Kg5 {[%emt 0:00:00]} Ne7 {[%emt 0:00:05]} 0-1

[Event "EYTCC U18 Open 2019"]
[Site "Pardubice"]
[Date "2019.07.15"]
[Round "5.7"]
[White "Tisaj, Domen"]
[Black "Rozen, Eytan"]
[Result "1/2-1/2"]
[ECO "E46"]
[WhiteElo "2232"]
[BlackElo "2260"]
[Annotator "NA"]
[PlyCount "105"]
[EventDate "2019.07.11"]
[EventType "swiss"]
[EventCountry "CZE"]
[SourceTitle "playchess.com"]
[Source "ChessBase"]
[SourceQuality "1"]
[WhiteTeam "Slovenia"]
[BlackTeam "Israel"]
[WhiteTeamCountry "SLO"]
[BlackTeamCountry "ISR"]
[TimeControl "40/5400+30:1800+30"]

1. d4 {[%emt 0:00:00]} Nf6 {[%emt 0:00:00]} 2. c4 {[%emt 0:00:00]} e6 {[%emt 0:00:00]} 3. Nc3 {[%emt 0:00:00]} Bb4 {[%emt 0:00:00]} 4. e3 {[%emt 0:00:00]} O-O {[%emt 0:00:07]} 5. Nge2 {[%emt 0:00:00]} Re8 {[%emt 0:00:12]} 6. a3 {[%emt 0:00:05]} Bf8 {[%emt 0:00:08]} 7. d5 {[%emt 0:00:05]} a5 {[%emt 0:00:31]} 8. g3 {[%emt 0:00:13]} Na6 {[%emt 0:00:33]} 9. Bg2 {[%emt 0:00:07]} Nc5 {[%emt 0:01:19]} 10. b3 {[%emt 0:00:08]} exd5 {[%emt 0:01:31]} 11. cxd5 {[%emt 0:00:13]} Nfe4 {[%emt 0:02:13]} 12. Nxe4 {[%emt 0:06:45]} Nxe4 {[%emt 0:00:09]} 13. Bb2 {[%emt 0:00:28]} c5 {[%emt 0:12:43]} 14. a4 {[%emt 0:03:53]} d6 {[%emt 0:08:08]} 15. O-O {[%emt 0:01:20]} Bd7 {[%emt 0:03:19]} 16. Qc2 {[%emt 0:04:56]} Nf6 {[%emt 0:00:39]} 17. Nc3 {[%emt 0:01:00]} g6 {[%emt 0:04:27]} 18. Rfe1 {[%emt 0:03:54]} Bg7 {[%emt 0:00:19]} 19. e4 {[%emt 0:01:35]} h5 {[%emt 0:01:11]} 20. Rad1 {[%emt 0:07:07]} Rc8 {[%emt 0:01:56]} 21. Nb1 {[%emt 0:00:56]} b5 {[%emt 0:01:21]} 22. axb5 {[%emt 0:02:48]} Bxb5 {[%emt 0:00:42]} 23. Na3 {[%emt 0:00:26]} Ba6 {[%emt 0:08:14]} 24. Nc4 {[%emt 0:01:37]} Bxc4 {[%emt 0:01:00]} 25. bxc4 {[%emt 0:00:46]} Nd7 {[%emt 0:07:21]} 26. Bxg7 {[%emt 0:00:37]} Kxg7 {[%emt 0:00:01]} 27. Qc3+ {[%emt 0:04:28]} Kg8 {[%emt 0:06:02]} 28. f4 {[%emt 0:01:56]} Qf6 {[%emt 0:14:23]} 29. e5 {[%emt 0:10:40]} Qg7 {[%emt 0:11:44]} 30. Bh3 {[%emt 0:00:46]} Rcd8 {[%emt 0:00:49]} 31. Qxa5 {[%emt 0:02:36]} dxe5 {[%emt 0:00:20]} 32. Bxd7 {[%emt 0:01:10]} Rxd7 {[%emt 0:00:01]} 33. fxe5 {[%emt 0:09:31]} Rxe5 {[%emt 0:00:08]} 34. Rxe5 {[%emt 0:00:19]} Qxe5 {[%emt 0:00:02]} 35. Qxc5 {[%emt 0:00:10]} Rc7 {[%emt 0:07:06]} 36. Qd4 {[%emt 0:00:58]} Qe2 {[%emt 0:01:33]} 37. Rc1 {[%emt 0:00:54]} h4 {[%emt 0:03:11]} 38. gxh4 {[%emt 0:00:18]} Re7 {[%emt 0:04:20]} 39. Ra1 {[%emt 0:05:42]} Kh7 {[%emt 0:00:41]} 40. Qf4 {[%emt 0:00:25]} Re4 {[%emt 0:01:04]} 41. Qxf7+ {[%emt 0:32:06]} Kh6 {[%emt 0:30:01]} 42. Qf8+ {[%emt 0:02:01]} Kh5 {[%emt 0:00:04]} 43. h3 {[%emt 0:00:41]} Qe3+ {[%emt 0:00:00]} 44. Kg2 {[%emt 0:00:00]} Qd2+ {[%emt 0:00:00]} 45. Kh1 {[%emt 0:00:00]} Qc3 {[%emt 0:00:00]} 46. Qf1 {[%emt 0:00:00]} Re3 {[%emt 0:01:09]} 47. Qd1+ {[%emt 0:00:00]} Kh6 {[%emt 0:00:07]} 48. Qc1 {[%emt 0:00:00]} Qd3 {[%emt 0:00:21]} 49. Kg1 {[%emt 0:00:00]} Kh7 {[%emt 0:00:20]} 50. Ra7+ {[%emt 0:06:02]} Kg8 {[%emt 0:00:07]} 51. Ra8+ {[%emt 0:00:04]} Kh7 {[%emt 0:00:07]} 52. Ra7+ {[%emt 0:00:04]} Kg8 {[%emt 0:00:07]} 53. Ra8+ {[%emt 0:00:05]} 1/2-1/2

[Event "EYTCC U18 Open 2019"]
[Site "Pardubice"]
[Date "2019.07.15"]
[Round "5.8"]
[White "Gleizer, Adar"]
[Black "Marn, Jan"]
[Result "0-1"]
[ECO "C99"]
[WhiteElo "1748"]
[BlackElo "2215"]
[Annotator "ChessBase"]
[PlyCount "72"]
[EventDate "2019.07.11"]
[EventType "swiss"]
[EventCountry "CZE"]
[SourceTitle "playchess.com"]
[Source "ChessBase"]
[SourceQuality "1"]
[WhiteTeam "Israel"]
[BlackTeam "Slovenia"]
[WhiteTeamCountry "ISR"]
[BlackTeamCountry "SLO"]
[TimeControl "40/5400+30:1800+30"]

1. e4 {[%emt 0:00:00]} e5 {[%emt 0:00:00]} 2. Nf3 {[%emt 0:00:00]} Nc6 {[%emt 0:00:00]} 3. Bb5 {[%emt 0:00:11]} a6 {[%emt 0:00:00]} 4. Ba4 {[%emt 0:00:12]} Nf6 {[%emt 0:00:00]} 5. O-O {[%emt 0:00:20]} Be7 {[%emt 0:00:00]} 6. Re1 {[%emt 0:00:23]} b5 {[%emt 0:00:14]} 7. Bb3 {[%emt 0:00:06]} d6 {[%emt 0:00:05]} 8. c3 {[%emt 0:00:50]} O-O {[%emt 0:00:14]} 9. h3 {[%emt 0:00:13]} Na5 {[%emt 0:00:06]} 10. Bc2 {[%emt 0:00:13]} c5 {[%emt 0:00:11]} 11. d4 {[%emt 0:02:40]} Qc7 {[%emt 0:00:07]} 12. Nbd2 {[%emt 0:00:20]} cxd4 {[%emt 0:00:12]} 13. cxd4 {[%emt 0:00:07]} Nc6 {[%emt 0:00:04]} 14. Nf1 {[%emt 0:01:07]} Nxd4 15. Nxd4 {[%emt 0:01:18]} exd4 {[%emt 0:16:53]} 16. Bb3 {[%emt 0:00:27]} Qb6 {[%emt 0:03:09]} 17. Ng3 {[%emt 0:05:12]} Re8 {[%emt 0:06:07]} 18. Qd3 {[%emt 0:01:36]} Bb7 {[%emt 0:21:06]} 19. Nf5 {[%emt 0:19:37]} Bf8 {[%emt 0:01:45]} 20. f3 {[%emt 0:22:47]} d5 {[%emt 0:08:55]} 21. e5 {[%emt 0:00:48]} Nd7 {[%emt 0:00:05]} 22. Bf4 {[%emt 0:01:06]} f6 {[%emt 0:10:19]} 23. e6 {[%emt 0:31:03]} Rxe6 {[%emt 0:00:18]} 24. Rxe6 {[%emt 0:00:15]} Qxe6 {[%emt 0:00:09]} 25. Nxd4 {[%emt 0:00:08]} Qf7 {[%emt 0:03:39]} 26. Bc2 {[%emt 0:04:14]} g6 {[%emt 0:00:26]} 27. Re1 {[%emt 0:00:16]} Re8 {[%emt 0:01:30]} 28. Rxe8 {[%emt 0:01:44]} Qxe8 {[%emt 0:00:05]} 29. Qd2 {[%emt 0:00:28]} Bc5 {[%emt 0:04:22]} 30. Kh2 {[%emt 0:00:51]} Nf8 {[%emt 0:01:56]} 31. b4 {[%emt 0:00:59]} Ba7 {[%emt 0:01:17]} 32. Bb3 {[%emt 0:01:16]} Ne6 {[%emt 0:03:28]} 33. Ne2 {[%emt 0:00:19]} Nxf4 {[%emt 0:00:38]} 34. Nxf4 {[%emt 0:00:45]} Be3 {[%emt 0:00:34]} 35. Nxd5 {[%emt 0:05:07]} Bxd2 {[%emt 0:00:22]} 36. Nxf6+ {[%emt 0:00:14]} Kf8 {[%emt 0:00:05]} 0-1